bitfinex/quotes_SOLUSD_20250417
["timestamp","ask_amount","ask_price","bid_price","bid_amount"]
[1744906371734,7.5030012,133.28,133.27,45.60617634]
[1744906372025,37.40574051,133.3,133.27,45.60617634]
[1744906372800,18.75609165,133.3,133.28,45.60617634]
[1744906373000,18.75609165,133.3,133.22,26.0]
[1744906373203,64.36226799,133.3,133.25,45.60617634]
[1744906373429,18.64964886,133.27,133.23,45.60617634]
[1744906373800,18.933972,133.29,133.23,45.60617634]
[1744906374005,45.60617634,133.26,133.21,48.23574284]
[1744906374209,45.60617634,133.25,133.21,2.6295665]
[1744906374420,64.2558252,133.24,133.21,2.6295665]
[1744906374718,45.60617634,133.26,133.21,48.23574284]
[1744906374914,18.64964886,133.25,133.21,2.6295665]
[1744906375107,18.64964886,133.25,133.21,48.23574284]
[1744906375311,18.64964886,133.25,133.21,2.6295665]
[1744906375502,30.26963941,133.24,133.21,2.6295665]
[1744906375896,7.50638042,133.22,133.21,2.6295665]
[1744906376396,26.15602928,133.22,133.21,1e-08]
[1744906378507,7.50638042,133.22,133.21,1e-08]
[1744906379408,56.42566869,133.22,133.21,1e-08]
[1744906381802,56.70999183,133.22,133.21,1e-08]
[1744906383334,93.23703124,133.22,133.21,1e-08]
[1744906383710,93.23703124,133.22,133.13,0.03]
[1744906383711,0.14216157,133.21,133.13,0.03]
[1744906384031,30.26963941,133.16,133.13,0.03]
[1744906384335,7.51032669,133.15,133.13,0.03]
[1744906384514,18.64964886,133.14,133.13,0.03]
[1744906384842,18.64964886,133.14,133.06,25.8449]
[1744906385030,48.91928827,133.14,133.06,25.8449]
[1744906385234,18.64964886,133.12,133.08,30.26963941]
[1744906385597,48.91928827,133.14,133.09,30.26963941]
[1744906386033,7.51032669,133.15,133.13,30.26963941]
[1744906386204,26.28158998,133.18,133.14,30.26963941]
[1744906386404,26.28158998,133.18,133.11,30.26963941]
[1744906386405,18.64964886,133.15,133.11,30.26963941]
[1744906386742,48.91928827,133.15,133.1,30.26963941]
[1744906387241,48.91928827,133.13,133.06,32.3849]
[1744906387736,48.91928827,133.13,133.09,30.26963941]
[1744906387737,18.64964886,133.13,133.09,30.26963941]
[1744906388332,7.51201923,133.12,133.09,30.26963941]
[1744906388632,7.51201923,133.12,133.11,30.26963941]
[1744906389029,7.51032669,133.15,133.11,30.26963941]
[1744906389224,7.51032669,133.15,133.12,30.26963941]
[1744906389728,7.51032669,133.15,133.07,30.26963941]
[1744906389928,7.51032669,133.15,133.14,30.26963941]
[1744906390110,7.51032669,133.15,133.08,26.0]
[1744906390319,26.28046869,133.18,133.14,30.26963941]
[1744906391009,56.5501081,133.18,133.14,30.26963941]
[1744906391225,26.28046869,133.18,133.14,30.26963941]
[1744906391418,7.50863493,133.18,133.16,30.26963941]
[1744906391626,7.50863493,133.18,133.17,30.26963941]
[1744906392438,26.27635796,133.2,133.16,30.26963941]
[1744906393151,30.26963941,133.19,133.15,30.26963941]
[1744906393452,48.91928827,133.18,133.14,30.26963941]
[1744906393951,30.26963941,133.17,133.13,30.26963941]
[1744906394447,30.26963941,133.17,133.1,51.8571]
[1744906394448,26.28416941,133.16,133.12,30.26963941]
[1744906394745,18.64964886,133.15,133.11,30.26963941]
[1744906395047,26.28416941,133.16,133.14,30.26963941]
[1744906395238,7.50807117,133.19,133.15,30.26963941]
[1744906395438,7.50807117,133.19,133.16,30.26963941]
[1744906395847,7.50807117,133.19,133.12,26.0]
[1744906396025,7.50807117,133.19,133.17,30.26963941]
[1744906396224,18.77017794,133.19,133.11,33.512261]
[1744906396438,18.77017794,133.19,133.17,30.26963941]
[1744906396737,18.77017794,133.19,133.16,30.26963941]
[1744906396921,18.77017794,133.19,133.17,30.26963941]
[1744906397120,7.5075075,133.2,133.17,30.26963941]
[1744906397324,7.50525367,133.24,133.19,30.26963941]
[1744906397532,56.26963941,133.22,133.14,6.2675]
[1744906397726,30.26963941,133.21,133.17,30.26963941]
[1744906398127,26.0,133.22,133.17,30.26963941]
[1744906398338,18.76206333,133.25,133.21,30.26963941]
[1744906398542,18.76206333,133.25,133.23,30.26963941]
[1744906398747,18.64964886,133.24,133.2,30.26963941]
[1744906399225,30.26963941,133.23,133.18,30.26963941]
[1744906399549,30.26963941,133.23,133.15,26.0]
[1744906399722,30.26963941,133.23,133.18,30.26963941]
[1744906399926,30.26963941,133.23,133.19,30.26963941]
[1744906400472,30.26963941,133.21,133.14,6.2675]
[1744906400752,30.26963941,133.2,133.16,30.26963941]
[1744906400959,18.64964886,133.21,133.17,30.26963941]
[1744906401160,48.91928827,133.21,133.16,30.26963941]
[1744906401465,30.26963941,133.2,133.15,30.26963941]
[1744906401749,30.26963941,133.19,133.14,6.2675]
[1744906401922,30.26963941,133.19,133.14,36.53713941]
[1744906402123,48.91928827,133.18,133.13,30.26963941]
[1744906402369,26.28219568,133.17,133.14,30.26963941]
[1744906402922,56.55183509,133.17,133.1,6.3853]
[1744906403128,30.26963941,133.16,133.12,30.26963941]
[1744906403626,56.55183509,133.17,133.12,30.26963941]
[1744906403823,56.55183509,133.17,133.13,30.26963941]
[1744906405045,26.28219568,133.17,133.14,30.26963941]
[1744906405351,30.26963941,133.16,133.11,30.26963941]
[1744906405523,30.26963941,133.16,133.1,6.3853]
[1744906405524,30.26963941,133.15,133.1,36.65493941]
[1744906405855,26.0,133.16,133.04,0.03]
[1744906405856,30.26963941,133.11,133.06,36.76733941]
[1744906406026,48.91928827,133.12,133.07,30.26963941]
[1744906406861,7.51258357,133.11,133.07,30.26963941]
[1744906407164,30.26963941,133.1,133.04,2.1786]
[1744906407371,26.29404251,133.11,133.07,30.26963941]
[1744906407655,7.51258357,133.11,133.08,30.26963941]
[1744906408044,56.56368192,133.11,133.04,2.1786]
[1744906408242,18.64964886,133.1,133.04,2.1786]
[1744906408450,56.56368192,133.11,133.06,30.26963941]
[1744906408760,56.56368192,133.11,133.04,2.1786]
[1744906408953,26.29404251,133.11,133.07,30.26963941]
[1744906409159,7.51258357,133.11,133.08,30.26963941]
[1744906409534,7.51258357,133.11,133.04,2.1786]
[1744906409751,7.51258357,133.11,133.08,30.26963941]
[1744906410047,56.56368192,133.11,133.04,2.1786]
[1744906410245,26.29404251,133.11,133.07,30.26963941]
[1744906410445,26.29404251,133.11,133.08,30.26963941]
[1744906410752,26.29404251,133.11,133.07,30.26963941]
[1744906412547,26.29404251,133.11,133.04,2.1786]
[1744906412855,56.56368192,133.11,133.07,30.26963941]
[1744906413035,26.29404251,133.11,133.08,30.26963941]
[1744906413423,26.29404251,133.11,133.09,30.26963941]
[1744906413631,56.56368192,133.11,133.04,0.03]
[1744906413835,56.56368192,133.11,133.06,30.26963941]
[1744906414052,26.29404251,133.11,133.06,30.26963941]
[1744906414240,26.29404251,133.11,133.07,30.26963941]
[1744906414661,26.29404251,133.11,133.09,30.26963941]
[1744906414852,7.51258357,133.11,133.1,30.26963941]
[1744906415157,37.68815541,133.17,133.1,30.26963941]
[1744906415158,7.51032669,133.15,133.1,30.26963941]
[1744906415348,7.51032669,133.15,133.13,30.26963941]
[1744906416358,7.51032669,133.15,133.09,6.1406]
[1744906416556,26.28251234,133.17,133.13,30.26963941]
[1744906416747,26.28251234,133.17,133.14,30.26963941]
[1744906417565,7.50919876,133.17,133.16,30.26963941]
[1744906417870,7.50694392,133.21,133.16,30.26963941]
[1744906418038,7.50694392,133.21,133.19,30.26963941]
[1744906418364,37.77658333,133.21,133.16,30.26963941]
[1744906418659,26.27824911,133.19,133.16,30.26963941]
[1744906419035,7.50807117,133.19,133.17,30.26963941]
[1744906419437,7.50807117,133.19,133.16,30.26963941]
[1744906419744,26.27824911,133.19,133.16,30.26963941]
[1744906420363,26.27824911,133.19,133.17,30.26963941]
[1744906420741,18.77017794,133.19,133.17,30.26963941]
[1744906420940,7.5075075,133.2,133.18,30.26963941]
[1744906421162,7.50412726,133.26,133.19,30.26963941]
[1744906421369,7.50412726,133.26,133.25,30.26963941]
[1744906421769,7.50412726,133.26,133.24,30.26963941]
[1744906421959,7.50412726,133.26,133.22,30.26963941]
[1744906422582,26.26444543,133.26,133.22,30.26963941]
[1744906422880,26.26444543,133.26,133.24,30.26963941]
[1744906423051,26.26444543,133.26,133.23,30.26963941]
[1744906425075,18.64964886,133.27,133.23,30.26963941]
[1744906425282,48.91928827,133.27,133.23,30.26963941]
[1744906425684,37.83564061,133.28,133.23,30.26963941]
[1744906425884,0.063,133.28,133.27,30.26963941]
[1744906426397,0.063,133.31,133.3,26.14216157]
[1744906426637,0.063,133.36,133.31,0.28432314]
[1744906426765,11.52152365,133.42,133.38,26.0]
[1744906426963,11.52152365,133.42,133.37,18.76]
[1744906426964,7.55812886,133.42,133.37,18.76]
[1744906427262,0.063,133.42,133.38,0.28432314]
[1744906427583,0.063,133.42,133.36,0.28432314]
[1744906427784,0.063,133.42,133.35,6.354]
[1744906427951,0.063,133.42,133.4,30.26963941]
[1744906428153,0.063,133.42,133.41,30.26963941]
[1744906428461,0.063,133.42,133.39,26.0]
[1744906428678,0.063,133.42,133.41,30.26963941]
[1744906429001,0.063,133.42,133.37,26.0]
[1744906429372,0.063,133.42,133.38,30.26963941]
[1744906429594,11.45852365,133.44,133.41,60.53927882]
[1744906429897,7.55684588,133.45,133.43,30.26963941]
[1744906430067,30.26963941,133.44,133.35,6.354]
[1744906430272,26.0,133.42,133.35,36.62363941]
[1744906430488,26.0,133.42,133.38,30.26963941]
[1744906430882,26.0,133.42,133.35,30.26963941]
[1744906431068,7.49568997,133.41,133.39,30.26963941]
[1744906431272,7.49456643,133.43,133.4,30.26963941]
[1744906431472,7.49456643,133.43,133.42,30.26963941]
[1744906431672,7.49456643,133.43,133.41,30.26963941]
[1744906432199,26.23098252,133.43,133.35,113.13963941]
[1744906432438,26.23098252,133.43,133.39,30.26963941]
[1744906432701,26.23098252,133.43,133.41,30.26963941]
[1744906432870,26.23098252,133.43,133.39,30.26963941]
[1744906433070,56.50455432,133.41,133.36,30.26963941]
[1744906433302,30.26963941,133.4,133.35,30.26963941]
[1744906433596,48.91928827,133.39,133.3,25.8518]
[1744906433804,37.61289824,133.44,133.38,30.26963941]
[1744906433805,7.49400479,133.44,133.38,30.26963941]
[1744906433990,7.49400479,133.44,133.42,30.26963941]
[1744906434305,56.49865619,133.44,133.4,30.26963941]
[1744906434477,26.22901678,133.44,133.41,30.26963941]
[1744906434798,7.49400479,133.44,133.42,30.26963941]
[1744906435171,75.20948402,133.45,133.4,30.26963941]
[1744906435979,48.91928827,133.43,133.38,30.26963941]
[1744906436230,30.26963941,133.42,133.36,19.46]
[1744906436403,30.26963941,133.42,133.37,30.26963941]
[1744906436799,63.75741193,133.45,133.39,30.26963941]
[1744906437124,7.49456643,133.43,133.39,30.26963941]
[1744906437325,7.49456643,133.43,133.41,30.26963941]
[1744906437911,7.49456643,133.43,133.4,30.26963941]
[1744906438113,7.49456643,133.43,133.36,0.14216157]
[1744906438430,7.49456643,133.43,133.39,30.26963941]
[1744906438431,26.23098252,133.43,133.39,30.26963941]
[1744906438635,30.26963941,133.41,133.32,102.33]
[1744906438929,30.26963941,133.41,133.36,30.26963941]
[1744906439433,26.23688155,133.4,133.36,30.26963941]
[1744906439726,30.26963941,133.37,133.32,30.26963941]
[1744906439948,18.64964886,133.39,133.34,30.26963941]
[1744906440105,18.64964886,133.39,133.35,30.26963941]
[1744906440507,18.64964886,133.39,133.36,30.26963941]
[1744906440733,52.23688155,133.4,133.38,30.26963941]
[1744906440898,7.49625187,133.4,133.37,30.26963941]
[1744906441104,7.49512816,133.42,133.39,30.26963941]
[1744906441315,30.26963941,133.44,133.39,30.26963941]
[1744906441735,18.71264886,133.45,133.4,30.26963941]
[1744906441910,18.71264886,133.45,133.35,62.73866255]
[1744906441911,30.26963941,133.44,133.39,30.26963941]
[1744906442445,26.0,133.42,133.34,19.44]
[1744906442637,26.0,133.42,133.37,30.26963941]
[1744906442813,56.26963941,133.44,133.39,30.26963941]
[1744906443021,26.0,133.44,133.41,30.26963941]
[1744906443219,0.063,133.45,133.43,30.26963941]
[1744906443420,0.063,133.45,133.39,26.0]
[1744906443633,26.0,133.44,133.42,30.26963941]
[1744906443843,0.063,133.45,133.43,30.26963941]
[1744906444048,0.063,133.45,133.41,19.44]
[1744906444249,0.063,133.45,133.44,30.26963941]
[1744906445241,25.91656908,133.47,133.44,30.26963941]
[1744906445440,7.49288176,133.46,133.44,30.26963941]
[1744906445648,7.49288176,133.46,133.41,19.44]
[1744906446028,7.41966891,133.46,133.42,30.26963941]
[1744906446329,30.26963941,133.45,133.38,0.28432314]
[1744906446646,30.26963941,133.45,133.4,30.26963941]
[1744906446940,26.15187331,133.46,133.42,30.26963941]
[1744906447252,7.41966891,133.46,133.43,30.26963941]
[1744906447544,7.55496466,133.48,133.45,30.26963941]
[1744906447840,26.0,133.47,133.44,0.28432314]
[1744906448024,26.0,133.47,133.46,30.26963941]
[1744906448232,7.55496466,133.48,133.46,30.26963941]
[1744906448416,33.55496466,133.48,133.47,30.26963941]
[1744906449138,7.55496466,133.48,133.47,45.72793363]
[1744906449521,0.063,133.48,133.46,45.72793363]
[1744906450833,0.063,133.48,133.44,45.72793363]
[1744906451018,45.79093363,133.48,133.43,19.44]
[1744906451327,45.72793363,133.47,133.42,45.72793363]
[1744906451530,7.49288176,133.46,133.42,45.72793363]
[1744906452152,45.72793363,133.45,133.4,45.72793363]
[1744906452331,45.72793363,133.44,133.35,90.36668249]
[1744906452645,26.0,133.44,133.38,45.72793363]
[1744906452827,26.22508616,133.46,133.4,45.72793363]
[1744906453028,71.95301979,133.46,133.41,45.72793363]
[1744906453235,71.95301979,133.46,133.36,18.64964886]
[1744906453236,7.49288176,133.46,133.43,45.72793363]
[1744906453439,7.49288176,133.46,133.44,45.72793363]
[1744906453643,26.28429502,133.48,133.45,45.72793363]
[1744906453839,26.28429502,133.48,133.44,45.72793363]
[1744906454038,72.01222865,133.48,133.43,45.72793363]
[1744906454222,45.72793363,133.46,133.41,65.16793363]
[1744906454422,45.72793363,133.47,133.42,45.72793363]
[1744906454953,45.72793363,133.44,133.4,45.72793363]
[1744906455143,45.72793363,133.42,133.37,45.72793363]
[1744906455340,45.72793363,133.41,133.36,45.72793363]
[1744906455532,7.49625187,133.4,133.36,45.72793363]
[1744906455728,26.23688155,133.4,133.36,45.72793363]
[1744906456037,26.23688155,133.4,133.37,45.72793363]
[1744906456245,45.72793363,133.39,133.33,19.44]
[1744906456429,45.72793363,133.37,133.3,6.2594]
[1744906456629,45.72793363,133.36,133.31,45.72793363]
[1744906456944,45.72793363,133.38,133.33,45.72793363]
[1744906457426,63.71814092,133.4,133.34,45.72793363]
[1744906457916,45.72793363,133.39,133.34,45.72793363]
[1744906458116,109.44607455,133.4,133.35,45.72793363]
[1744906458320,26.23688155,133.4,133.36,45.72793363]
[1744906458721,26.23688155,133.4,133.37,45.72793363]
[1744906458923,71.96481518,133.4,133.32,26.14216157]
[1744906459122,26.23688155,133.4,133.36,45.72793363]
[1744906460546,7.49625187,133.4,133.39,45.72793363]
[1744906460752,18.73798645,133.42,133.39,45.72793363]
[1744906460753,7.49512816,133.42,133.39,45.72793363]
[1744906461048,7.49512816,133.42,133.41,45.72793363]
[1744906461453,7.49512816,133.42,133.39,45.72793363]
[1744906461634,53.22306179,133.42,133.37,45.72793363]
[1744906461831,71.9608822,133.42,133.37,45.72793363]
[1744906462332,26.23294857,133.42,133.38,45.72793363]
[1744906462653,26.23294857,133.42,133.37,45.72793363]
[1744906462834,26.23294857,133.42,133.38,45.72793363]
[1744906463031,71.9608822,133.42,133.37,45.72793363]
[1744906463237,26.23294857,133.42,133.39,45.72793363]
[1744906463624,26.23294857,133.42,133.38,45.72793363]
[1744906463823,7.49512816,133.42,133.4,45.72793363]
[1744906464025,7.49400479,133.44,133.41,45.72793363]
[1744906464249,7.49400479,133.44,133.43,45.72793363]
[1744906464427,7.49400479,133.44,133.41,45.72793363]
[1744906464630,7.49400479,133.44,133.37,18.933972]
[1744906464631,7.49400479,133.44,133.42,45.72793363]
[1744906464830,7.49400479,133.44,133.41,45.72793363]
[1744906465639,18.73501199,133.44,133.41,45.72793363]
[1744906465842,7.49344323,133.45,133.42,45.72793363]
[1744906466039,7.49344323,133.45,133.41,45.72793363]
[1744906466224,7.49344323,133.45,133.42,45.72793363]
[1744906466433,7.49344323,133.45,133.37,33.78218433]
[1744906466434,71.72793363,133.44,133.37,0.28432314]
[1744906466731,71.72793363,133.44,133.39,45.72793363]
[1744906466926,26.0,133.44,133.4,45.72793363]
[1744906467349,71.72793363,133.44,133.39,45.72793363]
[1744906467956,71.95891615,133.43,133.36,0.14216157]
[1744906468129,71.95891615,133.43,133.36,0.28432314]
[1744906468453,71.95891615,133.43,133.38,45.72793363]
[1744906468634,45.72793363,133.41,133.36,45.72793363]
[1744906469355,26.23098252,133.43,133.39,30.19869834]
[1744906469534,7.49456643,133.43,133.4,30.19869834]
[1744906470236,7.49456643,133.43,133.39,30.19869834]
[1744906471051,7.49456643,133.43,133.4,30.19869834]
[1744906471247,30.19869834,133.42,133.35,19.5]
[1744906471448,30.19869834,133.41,133.36,30.19869834]
[1744906471752,30.19869834,133.4,133.35,26.0]
[1744906472057,30.19869834,133.4,133.31,38.38687102]
[1744906472058,30.19869834,133.36,133.31,41.6843205]
[1744906472244,56.44148156,133.37,133.32,30.19869834]
[1744906472552,30.19869834,133.35,133.31,11.48562216]
[1744906472850,30.19869834,133.35,133.3,22.97124432]
[1744906472851,30.19869834,133.35,133.3,30.19869834]
[1744906473054,26.24278322,133.37,133.29,0.03]
[1744906473254,26.24278322,133.37,133.33,30.19869834]
[1744906473425,7.49793806,133.37,133.36,30.19869834]
[1744906473630,7.49793806,133.37,133.34,30.19869834]
[1744906473849,7.49793806,133.37,133.35,30.19869834]
[1744906474162,18.74451188,133.38,133.35,30.19869834]
[1744906475051,18.74451188,133.38,133.34,30.19869834]
[1744906475351,45.81712875,133.37,133.32,45.81712875]
[1744906475552,45.81712875,133.36,133.31,45.81712875]
[1744906475743,45.81712875,133.35,133.3,45.81712875]
[1744906475943,45.81712875,133.33,133.29,0.03]
[1744906476251,7.50131272,133.31,133.29,0.03]
[1744906476837,7.50131272,133.31,133.29,45.84712875]
[1744906477041,7.50131272,133.31,133.29,0.03]
[1744906477253,53.31844147,133.31,133.29,0.03]
[1744906478653,45.81712875,133.3,133.29,0.03]
[1744906478854,7.50131272,133.31,133.29,0.03]
[1744906479062,53.31844147,133.31,133.29,0.03]
[1744906479254,7.50131272,133.31,133.29,0.03]
[1744906480251,7.5001875,133.33,133.3,45.81712875]
[1744906480454,26.24475103,133.36,133.32,45.81712875]
[1744906480753,26.24475103,133.36,133.33,45.81712875]
[1744906480943,26.24475103,133.36,133.32,45.81712875]
[1744906481658,64.46677761,133.35,133.29,0.03]
[1744906481856,45.81712875,133.33,133.29,0.03]
[1744906482238,45.81712875,133.31,133.29,0.03]
[1744906482435,26.24868755,133.34,133.3,45.81712875]
[1744906482638,7.49962501,133.34,133.33,45.81712875]
[1744906482949,7.49962501,133.34,133.32,45.81712875]
[1744906483141,7.49962501,133.34,133.31,45.81712875]
[1744906483357,26.24868755,133.34,133.31,45.81712875]
[1744906483749,26.24868755,133.34,133.29,0.03]
[1744906483952,72.0658163,133.34,133.29,45.84712875]
[1744906484362,72.0658163,133.34,133.29,0.03]
[1744906484542,18.74906254,133.34,133.29,45.84712875]
[1744906484746,64.56619129,133.34,133.29,45.84712875]
[1744906485338,18.74906254,133.34,133.31,45.81712875]
[1744906485964,18.74906254,133.34,133.32,45.81712875]
[1744906486160,64.56619129,133.34,133.29,0.03]
[1744906486360,64.56619129,133.34,133.29,45.84712875]
[1744906486679,72.0658163,133.34,133.29,45.84712875]
[1744906488867,26.24868755,133.34,133.3,45.81712875]
[1744906489470,26.24868755,133.34,133.33,45.81712875]
[1744906489471,7.49962501,133.34,133.33,45.81712875]
[1744906490176,7.49962501,133.34,133.32,45.81712875]
[1744906490557,7.49932449,133.35,133.33,45.81712875]
[1744906490877,26.24102595,133.38,133.34,45.81712875]
[1744906491173,26.24102595,133.38,133.3,7.78616057]
[1744906491345,26.24102595,133.38,133.34,45.81712875]
[1744906491746,72.0581547,133.38,133.33,45.81712875]
[1744906491967,26.24102595,133.38,133.34,45.81712875]
[1744906492485,26.24102595,133.38,133.3,110.09614511]
[1744906492677,72.0581547,133.38,133.33,45.81712875]
[1744906493351,26.24102595,133.38,133.34,45.81712875]
[1744906493669,53.31225691,133.42,133.37,45.81712875]
[1744906493884,78.18767354,133.49,133.37,45.81712875]
[1744906493885,26.22325057,133.47,133.41,45.81712875]
[1744906494045,7.49232037,133.47,133.45,45.81712875]
[1744906494443,7.49232037,133.47,133.46,45.81712875]
[1744906494851,7.5536367,133.5,133.46,45.81712875]
[1744906495054,26.28022846,133.5,133.46,45.81712875]
[1744906495945,7.5536367,133.5,133.47,45.81712875]
[1744906496150,7.5536367,133.5,133.46,45.81712875]
[1744906496967,7.5536367,133.5,133.43,0.28432314]
[1744906496968,7.5536367,133.5,133.45,45.81712875]
[1744906497151,72.09735721,133.5,133.45,45.81712875]
[1744906497352,26.28022846,133.5,133.46,45.81712875]
[1744906497758,26.28022846,133.5,133.47,45.81712875]
[1744906497963,7.5536367,133.5,133.42,79.31219894]
[1744906498161,0.063,133.5,133.47,45.81712875]
[1744906499373,0.063,133.5,133.47,118.06054987]
[1744906499574,0.063,133.5,133.47,72.24342112]
[1744906500171,0.063,133.5,133.47,118.06054987]
[1744906500371,0.063,133.5,133.49,44.64964886]
[1744906500570,0.063,133.5,133.49,136.5682295]
[1744906500873,0.063,133.52,133.5,82.807]
[1744906501173,0.063,133.52,133.51,45.81712875]
[1744906501374,0.063,133.53,133.52,26.28432314]
[1744906501674,0.063,133.54,133.52,219.3752295]
[1744906501864,0.063,133.56,133.55,26.0]
[1744906502063,0.063,133.56,133.55,200.4412575]
[1744906502462,0.063,133.56,133.55,219.3752295]
[1744906502977,0.063,133.56,133.55,226.86306177]
[1744906503175,0.063,133.6,133.56,18.933972]
[1744906503477,0.063,133.6,133.59,90.75110075]
[1744906503787,0.063,133.6,133.59,173.55810075]
[1744906504875,0.063,133.6,133.59,154.90845189]
[1744906505459,0.063,133.6,133.59,154.62412875]
[1744906506167,0.063,133.6,133.59,154.90845189]
[1744906507579,0.063,133.6,133.59,154.62412875]
[1744906508758,0.063,133.6,133.59,154.90845189]
[1744906509177,0.063,133.6,133.59,139.16594448]
[1744906509482,0.063,133.61,133.6,0.28432314]
[1744906509689,0.063,133.61,133.6,30.35894448]
[1744906510071,0.063,133.65,133.64,30.07462134]
[1744906510380,6.3377,133.75,133.64,151.21559334]
[1744906510571,7.47887218,133.71,133.64,121.140972]
[1744906510770,7.47887218,133.71,133.7,30.07462134]
[1744906512194,7.47887218,133.71,133.65,26.28432314]
[1744906512395,48.7242702,133.7,133.64,82.807]
[1744906512566,26.18192698,133.68,133.65,30.07462134]
[1744906512763,56.25654832,133.68,133.61,26.0]
[1744906512993,56.25654832,133.68,133.65,30.07462134]
[1744906512994,26.18192698,133.68,133.65,30.07462134]
[1744906513194,26.18192698,133.68,133.64,30.07462134]
[1744906513486,26.18192698,133.68,133.65,30.07462134]
[1744906513992,7.48055056,133.68,133.67,30.07462134]
[1744906514382,7.47887218,133.71,133.67,30.07462134]
[1744906514577,7.47887218,133.71,133.64,109.09132314]
[1744906514578,18.69718046,133.71,133.68,30.07462134]
[1744906514768,18.69718046,133.71,133.67,30.07462134]
[1744906514970,18.69718046,133.71,133.68,30.07462134]
[1744906515170,18.69718046,133.71,133.68,45.58901873]
[1744906515780,18.69718046,133.71,133.64,109.09132314]
[1744906515973,18.69718046,133.71,133.67,45.58901873]
[1744906516280,45.58901873,133.7,133.65,45.58901873]
[1744906516475,18.69718046,133.71,133.65,45.58901873]
[1744906516476,26.18192698,133.68,133.65,45.58901873]
[1744906516995,26.18192698,133.68,133.66,45.58901873]
[1744906517382,26.18192698,133.68,133.67,45.58901873]
[1744906517695,26.18192698,133.68,133.66,45.58901873]
[1744906518394,26.18192698,133.68,133.67,45.58901873]
[1744906518598,26.17801046,133.7,133.67,45.58901873]
[1744906519097,26.17801046,133.7,133.69,45.58901873]
[1744906519302,7.47943156,133.7,133.69,45.58901873]
[1744906520007,26.17801046,133.7,133.63,82.807]
[1744906520304,71.76702919,133.7,133.62,45.58901873]
[1744906520478,45.58901873,133.67,133.62,45.58901873]
[1744906520678,26.18584467,133.66,133.62,45.58901873]
[1744906520982,26.18584467,133.66,133.61,18.94]
[1744906521172,45.58901873,133.64,133.59,45.58901873]
[1744906521373,18.64964886,133.64,133.57,18.94]
[1744906521611,45.58901873,133.62,133.57,45.58901873]
[1744906521788,45.58901873,133.59,133.54,82.807]
[1744906521988,45.58901873,133.61,133.57,45.58901873]
[1744906522187,45.58901873,133.61,133.56,45.58901873]
[1744906522493,45.58901873,133.59,133.54,128.39601873]
[1744906522705,26.19956582,133.59,133.55,45.58901873]
[1744906523194,71.78858455,133.59,133.54,128.39601873]
[1744906525878,26.19956582,133.59,133.55,45.58901873]
[1744906526079,26.19956582,133.59,133.56,45.58901873]
[1744906526289,26.19956582,133.59,133.55,45.58901873]
[1744906526479,71.78858455,133.59,133.55,45.58901873]
[1744906526981,45.58901873,133.58,133.52,82.807]
[1744906527186,45.58901873,133.57,133.52,128.39601873]
[1744906527398,63.62751701,133.59,133.53,45.58901873]
[1744906527605,71.78858455,133.59,133.55,45.58901873]
[1744906527812,26.19956582,133.59,133.55,45.58901873]
[1744906528105,26.19956582,133.59,133.56,45.58901873]
[1744906528291,71.78858455,133.59,133.55,45.58901873]
[1744906528494,0.28432314,133.54,133.41,20.0]
[1744906528699,45.58901873,133.52,133.42,45.58901873]
[1744906528910,26.21919244,133.49,133.45,45.58901873]
[1744906529282,71.80821117,133.49,133.44,45.58901873]
[1744906529599,71.80821117,133.49,133.48,45.58901873]
[1744906529600,7.49119784,133.49,133.48,45.58901873]
[1744906529783,7.49119784,133.49,133.45,26.0]
[1744906529980,7.49119784,133.49,133.45,45.58901873]
[1744906530288,26.21919244,133.49,133.46,45.58901873]
[1744906530687,26.21919244,133.49,133.47,45.58901873]
[1744906531012,71.80428349,133.51,133.46,45.58901873]
[1744906531306,26.21526476,133.51,133.47,45.58901873]
[1744906531810,45.58901873,133.5,133.43,26.0]
[1744906532108,45.58901873,133.49,133.44,45.58901873]
[1744906532802,45.58901873,133.5,133.45,45.58901873]
[1744906533014,26.21919244,133.49,133.43,26.0]
[1744906533188,26.21919244,133.49,133.46,45.58901873]
[1744906534002,26.21919244,133.49,133.45,45.58901873]
[1744906534403,71.80821117,133.49,133.44,45.58901873]
[1744906534611,26.21919244,133.49,133.45,45.58901873]
[1744906535785,71.80821117,133.49,133.44,45.58901873]
[1744906536287,45.58901873,133.48,133.43,128.39601873]
[1744906536487,109.26420038,133.49,133.44,45.58901873]
[1744906537905,45.58901873,133.48,133.43,128.39601873]
[1744906538111,45.58901873,133.45,133.4,64.59201873]
[1744906538292,7.49400479,133.44,133.43,45.58901873]
[1744906538697,18.73047081,133.48,133.43,45.58901873]
[1744906539004,18.73047081,133.48,133.45,45.58901873]
[1744906539312,7.49119784,133.49,133.46,30.15233537]
[1744906539515,6.458,133.58,133.48,56.15233537]
[1744906539695,7.48671108,133.57,133.54,30.15233537]